Cogmind - Beta 13 @@@ ROGUE MODE // 2024.03.08 @ 21:44:55 Player: darki Result: Destroyed by D-53 Grenadier with Mini Grenade Launcher Performance ------------- Evolutions (0) 0 Regions Visited (2) 400 Robots Destroyed (4) 20 Value Destroyed (56) 56 Prototype IDs (0) 0 Alien Tech Used (0) 0 Bonus (0) 0 TOTAL SCORE: 476 Bonus ------- None Cogmind --------- Core Integrity 0/250 Matter 266/300 Energy 98/100 System Corruption 2% Temperature Cool (0) Movement Core (50) Location -10/Mines Parts ------- > --- POWER (1) -------- (None) > --- PROPULSION (2) --- (None) > --- UTILITY (2) ------ Signal Interpreter > --- WEAPON (2) ------- (None) > --- INVENTORY (5) ---- Wheel Wheel Peak State ------------ > --- POWER ------------ Light Ion Engine > --- PROPULSION ------- Aluminum Leg Aluminum Leg > --- UTILITY ---------- Small Storage Unit Sensor Array > --- WEAPON ----------- EM Pulse Gun EM Pulse Gun > --- INVENTORY -------- Light Ion Engine Light Treads Light Treads Wheel Wheel Light Assault Rifle Mining Laser [Rating: 7] Favorites ----------- Power Light Ion Engine Engine Light Ion Engine Propulsion Aluminum Leg Leg Aluminum Leg Utility Sensor Array Device Sensor Array Storage Small Storage Unit Processor Signal Interpreter Protection Light Armor Plating Weapon Mining Laser Energy Gun EM Pulse Gun Ballistic Gun Assault Rifle Special Weapon Mining Laser Build | -11 -10 -10 ------- Run | Yrd Mat Min Slots Evolved . | . . . Power . | . . . Propulsion . | . . . Utility . | . . . Weapon . | . . . Parts Attached 9 | . 9 . Power 1 | . 1 . Engine 1 | . 1 . Core . | . . . Reactor . | . . . Propulsion . | . . . Treads . | . . . Leg . | . . . Wheel . | . . . Hover . | . . . Flight . | . . . Utility 3 | . 3 . Device 1 | . 1 . Storage . | . . . Processor 1 | . 1 . Hackware . | . . . Protection 1 | . 1 . Artifact . | . . . Weapon 5 | . 5 . Energy Gun 2 | . 2 . Energy Cannon . | . . . Ballistic Gun . | . . . Ballistic Cannon . | . . . Launcher . | . . . Special Weapon 3 | . 3 . Impact Weapon . | . . . Slashing Weapon . | . . . Piercing Weapon . | . . . Special Melee Weapon . | . . . Unidentified Prototypes . | . . . Corrupted Parts 1 | . 1 . System Corruption 2 | . 2 . Parts Lost 10 | . 6 4 Power 2 | . 1 1 Propulsion 2 | . 2 . Utility 1 | . . 1 Weapon 5 | . 3 2 Highest Loss Streak 5 | . 5 3 To Critical Strikes . | . . . Average Slot Usage (%) 77 | . 89 65 Engine 12 | . 13 12 Leg 12 | . 25 . Device 13 | . 12 14 Processor 9 | . 4 14 Protection 3 | . 7 . Energy Gun 10 | . 21 . Special Weapon 12 | . 1 24 Naked Turns . | . . . Heaviest Build 12 | 11 12 6 Greatest Support 20 | 20 20 3 Greatest Overweight (x) 1 | . 1 1 Average Overweight (x) . | . . . Largest Inventory Capacity 8 | . 8 5 Average Capacity 5 | . 5 5 Most Carried 7 | . 7 2 Average Carried 2 | . 3 2 Final Capacity 8 | 8 5 5 Final Carried 6 | 6 2 2 Class Distribution -------------------- 100% | Mutant Dominant Class ---------------- Mutant | -10/Materials Mutant | -10/Mines Resources | -11 -10 -10 ----------- Run | Yrd Mat Min Matter Collected 240 | 200 40 . Remotely . | . . . Salvage Created 55 | . 55 . Parts 7 | . 7 . Haulers Intercepted . | . . . Recyclers Shooed . | . . . Parts Field Recycled . | . . . Retrieved Matter . | . . . Parts Self-Destructed . | . . . Prevented . | . . . Kills | -11 -10 -10 ------- Run | Yrd Mat Min Combat Hostiles Destroyed 3 | . 3 . Guns 2 | . 2 . Cannons 1 | . 1 . Classes Destroyed 2 | . 2 . Watcher 1 | . 1 . Swarmer 3 | . 3 . Best Kill Streak 3 | . 3 . Combat Bots Only 3 | . 3 . Max Kills in Single Turn 1 | . 1 . Gunslinging . | . . . Exploded . | . . . Melee . | . . . Uniques/NPCs Destroyed . | . . . Combat | -11 -10 -10 -------- Run | Yrd Mat Min Hostile Shots Fired 84 | . 67 17 Missed 20 | . 15 5 Damage Taken 799 | . 591 208 Core 256 | . 154 102 Absorbed by Shields . | . . . Core Remaining (%) 100 | 100 . . Volleys Fired 36 | . 14 22 Largest 2 | . 2 2 Hottest 200 | . 140 200 Shots Fired 63 | . 22 41 Gun 16 | . 16 . Cannon . | . . . Launcher . | . . . Special 47 | . 6 41 Kinetic . | . . . Thermal 47 | . 6 41 Explosive . | . . . Electromagnetic 16 | . 16 . Robot Hit Streak 4 | . 4 1 Robot Miss Streak 2 | . 2 1 Penetration Max . | . . . Secondary Targets . | . . . Shots Hit Robots 13 | . 11 2 Core Hits 4 | . 4 . Critical Kills . | . . . Critical Parts Destroyed . | . . . Critical Strikes . | . . . Melee Attacks . | . . . Impact . | . . . Slashing . | . . . Piercing . | . . . Sneak Attacks . | . . . Combat Hostiles . | . . . Follow-up Attacks . | . . . Damage Inflicted 234 | . 170 64 Guns 113 | . 113 . Cannons . | . . . Explosions . | . . . Melee . | . . . Ramming 25 | . 9 16 Kinetic . | . . . Thermal 96 | . 48 48 Explosive . | . . . Electromagnetic 113 | . 113 . Impact . | . . . Slashing . | . . . Piercing . | . . . Highest Corruption 2 | . 2 2 Average Corruption 2 | . 2 2 Corruption Purged . | . . . Corruption Blocked . | . . . Effects 9 | . 1 8 Message Errors 2 | . 1 1 Matter Fused 5 | . . 5 Heat Flow Errors 1 | . . 1 Data Loss (minor) 1 | . . 1 Overload Shots . | . . . Overflow Damage . | . . . Projectiles . | . . . Explosions . | . . . Melee . | . . . Knockbacks . | . . . Impact . | . . . Kinetic . | . . . Secondary . | . . . Self-Inflicted Damage 7 | . . 7 Shots . | . . . Rammed 3 | . . 3 Targets Rammed 13 | . 10 3 Kicked 10 | . 10 . Crushed . | . . . Highest Temperature 368 | . 238 368 Average Temperature 94 | . 103 91 Received Heat Transfer 324 | . 246 78 Effects 3 | . . 3 Shutdowns 1 | . . 1 Interference 2 | . . 2 Siege Activations . | . . . Robots Corrupted . | . . . Combat Hostiles . | . . . Parts Fried . | . . . Impact Corruptions . | . . . Robots Melted . | . . . Combat Hostiles . | . . . Parts Melted . | . . . Heat Transferred 200 | . 100 100 Parts Sabotaged . | . . . Parts Stolen . | . . . Parts Stripped . | . . . Power Chain Reactions . | . . . Alert | -11 -10 -10 ------- Run | Yrd Mat Min Peak Influence 100 | . 100 55 Initial 31 | . . 31 Average 33 | . 25 41 Maximum Alert Level . | . . . Low Security (%) 100 | . 100 100 Level 1 . | . . . Level 2 . | . . . Level 3 . | . . . Level 4 . | . . . Level 5 . | . . . High Security . | . . . Max Security . | . . . Squads Dispatched . | . . . Investigation . | . . . Extermination . | . . . Reinforcement . | . . . Assault . | . . . Garrison . | . . . Intercept . | . . . Searches Triggered . | . . . Construction Impeded . | . . . Haulers Reinforced . | . . . Active Scanning Responses . | . . . Cargo Convoy Interrupts . | . . . Stealth | -11 -10 -10 --------- Run | Yrd Mat Min Distress Signals . | . . . Communications Jammed . | . . . Distress Signals . | . . . Times Spotted 19 | . 11 8 Peak Tracking Total 5 | . 5 3 Tactical Retreats 2 | . 1 1 Traps | -11 -10 -10 ------- Run | Yrd Mat Min Traps Triggered . | . . . Indirectly . | . . . Trap Hack Attempts . | . . . Triggered . | . . . Disarmed . | . . . Reprogrammed . | . . . Reused . | . . . Traps Extracted . | . . . Installed . | . . . Triggered . | . . . Machines | -11 -10 -10 ---------- Run | Yrd Mat Min Machines Disabled 1 | . 1 . Max in Single Turn 1 | . 1 . Machines Repaired . | . . . Machines Dismantled . | . . . Machines Sabotaged . | . . . Overloaded Fab Kills . | . . . Hacking | -11 -10 -10 --------- Run | Yrd Mat Min Machines Accessed . | . . . Terminals . | . . . Fabricators . | . . . Repair Stations . | . . . Recycling Units . | . . . Scanalyzers . | . . . Garrison Access . | . . . Total Hacks . | . . . Successful . | . . . Failed . | . . . Catastrophic . | . . . Database Lockouts . | . . . Manual . | . . . Terminals . | . . . Fabricators . | . . . Repair Stations . | . . . Recycling Units . | . . . Scanalyzers . | . . . Garrison Access . | . . . Terminal Hacks . | . . . Fabricator Hacks . | . . . Repair Station Hacks . | . . . Recycling Unit Hacks . | . . . Scanalyzer . | . . . Garrison Access Hacks . | . . . Unauthorized Hacks . | . . . Terminals . | . . . Fabricators . | . . . Repair Stations . | . . . Recycling Units . | . . . Scanalyzers . | . . . Garrison Access . | . . . Data Cores Recovered . | . . . Used . | . . . Hacking Detections . | . . . Full Trace Events . | . . . Feedback Events . | . . . Feedback Blocked . | . . . Robot Schematics Acquired . | . . . Robots Built . | . . . Authchips . | . . . Time . | . . . Total Robot Build Rating . | . . . Part Schematics Acquired . | . . . Parts Built . | . . . Authchips . | . . . Time . | . . . Total Part Build Rating . | . . . Parts Repaired . | . . . Time . | . . . Parts Recycled . | . . . Recycled Matter . | . . . Retrieved Matter . | . . . Retrieved Components . | . . . Parts Scanalyzed . | . . . Part Schematics Acquired . | . . . Parts Damaged . | . . . Bothacking | -11 -10 -10 ------------ Run | Yrd Mat Min Used RIF Installer . | . . . Robots Hacked . | . . . Non-combat . | . . . Combat . | . . . Robot Hacks Applied . | . . . Relay Couplers Released . | . . . Fabnet Peak Effective % . | . . . Robots Rewired . | . . . Allies Hacked . | . . . Hacks Repelled . | . . . Allies | -11 -10 -10 -------- Run | Yrd Mat Min Total Allies . | . . . Largest Group . | . . . Highest-Rated Group . | . . . Highest-Rated Ally . | . . . Total Orders . | . . . Ally Attacks . | . . . Total Damage . | . . . Kills . | . . . Allies Corrupted . | . . . Allies Melted . | . . . Intel | -11 -10 -10 ------- Run | Yrd Mat Min Robot Analysis Total . | . . . Derelict Logs Recovered . | . . . Drone Launches . | . . . Drone Recoveries . | . . . Exploration | -11 -10 -10 ------------- Run | Yrd Mat Min Turns Passed 786 | . 397 389 Spaces Moved 403 | 1 223 179 Core 196 | . 17 179 Treads . | . . . Legs 207 | 1 206 . Wheels . | . . . Hover . | . . . Flight . | . . . Fastest Speed 50 | 120 100 50 Average Speed 101 | 120 118 81 Slowest Speed 120 | 120 120 100 Overloaded Moves . | . . . Propulsion Burnouts . | . . . Robots Hopped . | . . . Cave-ins Triggered . | . . . Exploration Rate (%) 26 | 2 36 42 Regions Visited 2 Branch Regions 1 Pre-discovered Areas . | . . . Known Exits Taken 1 | . 1 . Unknown Exits Taken 1 | 1 . . Scrap Searched . | . . . Spaces Dug 29 | . . 29 Terrain Destroyed 39 | . 2 37 Melee . | . . . Projectile 39 | . 2 37 AOE . | . . . Terrain Rammed . | . . . Walls Destroyed . | . . . Machines Disabled . | . . . Actions | -11 -10 -10 --------- Run | Yrd Mat Min Total 619 | . 319 300 Wait 151 | . 55 96 Move 401 | . 222 179 Hop . | . . . Pick Up 1 | . 1 . Fast Attach 8 | . 8 . Attach 1 | . 1 . Detach . | . . . Swap . | . . . Drop 8 | . 8 . Fire 36 | . 14 22 Melee . | . . . Ram 3 | . . 3 Kick 10 | . 10 . Crush . | . . . Escape Stasis . | . . . Rewire . | . . . Trap . | . . . Miscellaneous . | . . . Route ------- -11/Scrapyard -10/Materials -10/Mines History --------- Turn | Location | Event 1 | -11/Scrapyard | Discovered new exit (range 0) 1 | -11/Scrapyard | Entered Materials 315 | -10/Materials | Build established: Mutant 366 | -10/Materials | Core integrity fell below 50% 373 | -10/Materials | Discovered new exit (range 15) 397 | -10/Materials | Identified exit to Mines 398 | -10/Materials | Entered Mines 409 | -10/Mines | Lost 5 parts (1p2n2w) 768 | -10/Mines | Assembled infested the area 773 | -10/Mines | Assisted by a Guerilla fighting off Assembled 779 | -10/Mines | Lost 3 parts (1p2w) 782 | -10/Mines | Core integrity fell below 20% 787 | -10/Mines | Destroyed by D-53 Grenadier with Mini Grenade Launcher Last Messages --------------- 00623_ System corrupted: Component data lost. 00625_ U-05 Engineer builds a Wall. 00709_ System corrupted: Matter fused (-10). 00734_ Mining Laser destroyed. 00736_ Lgt. Ion Engine destroyed. 00745_ U-05 Engineer builds a Wall. 00748_ Mining Laser destroyed. 00749_ U-05 Engineer builds a Wall. 00750_ EGOCWFH6POSXRJXDJHXO5/L&7=SHLOWD3 00756_ K-01 Serf collects debris. 00768_ ALERT: Infestation in the mines, dispatching Demolisher response squad. 00773_ A derelict emerges from the shadows: "You need to get out of here! I've been tracking a group of Assembled to figure out where they're coming from, and they're closing on this area, come on!" 00780_ Sensor Array destroyed. 00781_ Slammed into as-09567. 00787_ as-85080 destroyed. Map ----- +----------------------------------------------------+ | ????????????????????????????????# #?????????## ## | | ????????????????????????????????# ###??????## | | ???????????????????????????????## ##????# # | | ???????????????????????????????# ##???# ## | | ???????????????????????????????# """ ##??# ##? | | ??????????????????????????????## """ ##?# ##?? | | ????????????????????????#????## """ ### #?? | | ????????????????????##### #### ## ## | | ????????????????????? | | ????????????????????????# | | ??????????????????????????# | | ???????????????????????????# ##### | | ??????????????????##? ?????# ##???? | | ????????????????### ?????## ### # #????? | | ??????????????## ? ?????###??# ## #???? | | ???????????????$ ??????????# ### #???? | | ??????????????## g ??????????# #?## ##???? | | ??????????????# r # ?????????# #??######????? | | ??????????????# ?????????# #????????????? | | ???????????????? dg# ???####### #????????????? | | ?????????????????# #??# #????????????? | | ???????????????# # ??# ########????????????? | | ???????????????# ### #???????????????????? | | ????????????????# a ##a###????????????????## | | ?????????????????# ##??????????????## | | ?????????????????# @ %! #????????????##### | | ?????????????????# < #????????????# # | | ?????????????????## ##????????????#### | | ??????????????????## #####??????????????# # | | ???????????????????# ##??????????????????### | | ???????????????????## # #?????????????????????### | | ????????????????????#####?????????????????????# ## | | ??????????????????????????????????????????????##?? | | | | | | | | | | | | | | | | | | | | | | | | | | | | | | | | | | | +----------------------------------------------------+ Best States ------------- Heat Dissipation 25 Energy Generation 10 Energy Capacity 125 Matter Stores 300 Matter Capacity 300 Sight Range 16 Robot Scan Range 14 Terrain Scan Density 10 Armor Coverage 150 Evasion (%) 55 Item Schematics ----------------- None Robot Schematics ------------------ None Fabricated ------------ Nothing Alien Tech Used ----------------- None Achievements -------------- None Challenges ------------ None Game ------ Seed HardenedMicrowarpRegenerator Manual? 0 Play Time 00:07:58 Cumulative 146.6 hours Start 2024.03.08 @ 20:57:02 End 2024.03.08 @ 21:44:55 Sessions 1 Manual Loads 0 Difficulty Rogue Special Mode None Game No. 162 Rogue 162 Adventurer 0 Explorer 0 Win Type - Total 0 Types 0/0/0/0/0/0/0/0/0 Lore% 52 Gallery% 68 Achievement% 54 Wizard Run 0 Options --------- Layout 1 ASCII 0 Keyboard 0 Movement Numpad Keybinds 0 Fullscreen 1 Font 24/Smallcaps Map View 50x35 Zoom Use 0% Tactical HUD 1 Map Filters NONE Filters NONE Steam 1 RUN: 45a4fee9-3e33-4646-953f-f37df5032618